[Event "Titled Tuesday Blitz July 05 Late 2022"]
[White "Ahn, Hongjin"]
[Black "Drygalov, Andrey"]
[WhiteFideId "13201492"]
[BlackFideId "24171735"]
[WhiteElo "1873"]
[BlackElo "2531"]
[Result "0-1"]
[Round "01"]
[TimeControl "180+1"]
[Date "2022.07.05"]
[WhiteClock "0:00:04"]
[BlackClock "0:01:05"]

1. d4 {[%clk 0:02:56]}  Nf6 {[%clk 0:02:58]} 2. Nf3 {[%clk 0:02:55]}  d5 {[%clk 0:02:58]} 3. g3 {[%clk 0:02:55]}  Bf5 {[%clk 0:02:55]} 4. Bg2 {[%clk 0:02:54]}  e6 {[%clk 0:02:54]} 5. O-O {[%clk 0:02:54]}  h6 {[%clk 0:02:54]} 6. c4 {[%clk 0:02:53]}  c6 {[%clk 0:02:55]} 7. b3 {[%clk 0:02:49]}  Be7 {[%clk 0:02:55]} 8. Nbd2 {[%clk 0:02:41]}  O-O {[%clk 0:02:54]} 9. Bb2 {[%clk 0:02:40]}  Nbd7 {[%clk 0:02:53]} 10. Ne1 {[%clk 0:02:23]}  a5 {[%clk 0:02:51]} 11. a3 {[%clk 0:02:13]}  b5 {[%clk 0:02:50]} 12. c5 {[%clk 0:01:56]}  Qc7 {[%clk 0:02:45]} 13. Ndf3 {[%clk 0:01:12]}  Ne4 {[%clk 0:02:29]} 14. Nd3 {[%clk 0:01:00]}  Bf6 {[%clk 0:02:29]} 15. b4 {[%clk 0:00:50]}  Bh7 {[%clk 0:02:27]} 16. Nfe5 {[%clk 0:00:44]}  axb4 {[%clk 0:02:22]} 17. axb4 {[%clk 0:00:41]}  Rxa1 {[%clk 0:02:23]} 18. Qxa1 {[%clk 0:00:42]}  Nd2 {[%clk 0:02:21]} 19. Re1 {[%clk 0:00:28]}  Nc4 {[%clk 0:02:21]} 20. Bc3 {[%clk 0:00:22]}  Bxe5 {[%clk 0:02:12]} 21. Nxe5 {[%clk 0:00:17]}  Ndxe5 {[%clk 0:02:12]} 22. dxe5 {[%clk 0:00:18]}  Qb7 {[%clk 0:02:13]} 23. Qc1 {[%clk 0:00:15]}  Ra8 {[%clk 0:02:12]} 24. e4 {[%clk 0:00:12]}  Bxe4 {[%clk 0:02:12]} 25. Bxe4 {[%clk 0:00:13]}  dxe4 {[%clk 0:02:13]} 26. Rxe4 {[%clk 0:00:14]}  Qa6 {[%clk 0:02:06]} 27. Rg4 {[%clk 0:00:13]}  Kf8 {[%clk 0:01:59]} 28. Kg2 {[%clk 0:00:13]}  Qa3 {[%clk 0:01:58]} 29. Qc2 {[%clk 0:00:13]}  Qa2 {[%clk 0:01:49]} 30. Qd3 {[%clk 0:00:13]}  Kg8 {[%clk 0:01:46]} 31. h4 {[%clk 0:00:09]}  Rf8 {[%clk 0:01:39]} 32. h5 {[%clk 0:00:09]}  Qb3 {[%clk 0:01:30]} 33. Rf4 {[%clk 0:00:09]}  Nxe5 {[%clk 0:01:23]} 34. Qd4 {[%clk 0:00:09]}  f6 {[%clk 0:01:21]} 35. Kh3 {[%clk 0:00:06]}  Qd5 {[%clk 0:01:19]} 36. Re4 {[%clk 0:00:02]}  Kf7 {[%clk 0:01:13]} 37. f4 {[%clk 0:00:02]}  Nc4 {[%clk 0:01:05]} 38. Qxd5 {[%clk 0:00:01]}  exd5 {[%clk 0:01:05]} 39. Re1 {[%clk 0:00:02]}  Ra8 {[%clk 0:01:05]} 40. f5 {[%clk 0:00:02]}  Ra3 {[%clk 0:01:04]} 41. Bd4 {[%clk 0:00:02]}  Rd3 {[%clk 0:01:05]} 42. Ba1 {[%clk 0:00:02]}  Ne3 {[%clk 0:01:02]} 43. Re2 {[%clk 0:00:02]}  Nxf5 {[%clk 0:01:02]} 44. Ra2 {[%clk 0:00:03]}  Rxg3+ {[%clk 0:01:02]} 45. Kh2 {[%clk 0:00:03]}  Rg5 {[%clk 0:01:03]} 46. Ra7+ {[%clk 0:00:04]}  Ke6 {[%clk 0:01:03]} 47. Rc7 {[%clk 0:00:04]}  Rxh5+ {[%clk 0:01:04]} 48. Kg2 {[%clk 0:00:04]}  Ne7 {[%clk 0:01:04]} 49. Bd4 {[%clk 0:00:04]}  Rg5+ {[%clk 0:01:05]} 50. Kf2 {[%clk 0:00:04]}  h5 {[%clk 0:01:05]} 51. Be3 {[%clk 0:00:03]}  Rg4 {[%clk 0:01:06]} 52. Kf3 {[%clk 0:00:03]}  Rxb4 {[%clk 0:01:06]} 53. Bf4 {[%clk 0:00:03]}  g5 {[%clk 0:01:04]} 54. Bd6 {[%clk 0:00:04]}  Nf5 {[%clk 0:01:05]} 55. Rxc6 {[%clk 0:00:04]}  Nd4+ {[%clk 0:01:05]} 0-1


[Site "https://www.chess.com"]

[Event "Titled Tuesday Blitz July 05 Late 2022"]
[White "Andreikin, Dmitry"]
[Black "Martin Carmona, Gaston Manuel"]
[WhiteFideId "4158814"]
[BlackFideId "22284567"]
[WhiteElo "2736"]
[BlackElo "2162"]
[Result "1-0"]
[Round "01"]
[TimeControl "180+1"]
[Date "2022.07.05"]
[WhiteClock "0:01:05"]
[BlackClock "0:00:05"]

1. d4 {[%clk 0:02:58]}  Nf6 {[%clk 0:02:58]} 2. c4 {[%clk 0:02:58]}  g6 {[%clk 0:02:53]} 3. Nc3 {[%clk 0:02:58]}  Bg7 {[%clk 0:02:53]} 4. e4 {[%clk 0:02:58]}  O-O {[%clk 0:02:53]} 5. h3 {[%clk 0:02:56]}  d6 {[%clk 0:02:52]} 6. Be3 {[%clk 0:02:56]}  c6 {[%clk 0:02:50]} 7. Bd3 {[%clk 0:02:53]}  a6 {[%clk 0:02:50]} 8. Nge2 {[%clk 0:02:50]}  b5 {[%clk 0:02:50]} 9. O-O {[%clk 0:02:51]}  Nbd7 {[%clk 0:02:43]} 10. Rc1 {[%clk 0:02:50]}  e5 {[%clk 0:02:41]} 11. d5 {[%clk 0:02:39]}  bxc4 {[%clk 0:01:57]} 12. Bxc4 {[%clk 0:02:40]}  c5 {[%clk 0:01:56]} 13. a3 {[%clk 0:02:35]}  Rb8 {[%clk 0:01:56]} 14. Qd2 {[%clk 0:02:35]}  Ne8 {[%clk 0:01:51]} 15. b4 {[%clk 0:02:15]}  cxb4 {[%clk 0:01:49]} 16. axb4 {[%clk 0:02:16]}  Rxb4 {[%clk 0:01:40]} 17. Na2 {[%clk 0:02:16]}  Rb8 {[%clk 0:01:37]} 18. Nb4 {[%clk 0:02:15]}  Bb7 {[%clk 0:01:31]} 19. Nc6 {[%clk 0:02:10]}  Bxc6 {[%clk 0:01:23]} 20. dxc6 {[%clk 0:02:11]}  Nc5 {[%clk 0:01:24]} 21. Nc3 {[%clk 0:01:59]}  Nc7 {[%clk 0:01:21]} 22. Rfd1 {[%clk 0:01:58]}  Rb4 {[%clk 0:01:13]} 23. Bxf7+ {[%clk 0:01:39]}  Rxf7 {[%clk 0:01:02]} 24. Bxc5 {[%clk 0:01:39]}  Rc4 {[%clk 0:01:00]} 25. Bb6 {[%clk 0:01:29]}  Rxc6 {[%clk 0:00:27]} 26. Nd5 {[%clk 0:01:27]}  Rxb6 {[%clk 0:00:28]} 27. Nxb6 {[%clk 0:01:27]}  Bf8 {[%clk 0:00:26]} 28. Nc4 {[%clk 0:01:25]}  Ne6 {[%clk 0:00:24]} 29. Nxe5 {[%clk 0:01:22]}  Rf4 {[%clk 0:00:19]} 30. Qd5 {[%clk 0:01:18]}  Qf6 {[%clk 0:00:19]} 31. Nd3 {[%clk 0:01:15]}  Rh4 {[%clk 0:00:16]} 32. e5 {[%clk 0:01:14]}  Qf5 {[%clk 0:00:13]} 33. Rc4 {[%clk 0:01:09]}  Rxc4 {[%clk 0:00:10]} 34. Qxc4 {[%clk 0:01:09]}  Kg7 {[%clk 0:00:09]} 35. Re1 {[%clk 0:01:07]}  Ng5 {[%clk 0:00:06]} 36. h4 {[%clk 0:01:05]}  Nf7 {[%clk 0:00:05]} 37. e6 {[%clk 0:01:05]} 1-0


[Site "https://www.chess.com"]

[Event "Titled Tuesday Blitz July 05 Late 2022"]
[White "Bortnyk, Olexandr"]
[Black "Tanaka, Taira Tyler"]
[WhiteFideId "14120828"]
[BlackFideId "7002351"]
[WhiteElo "2723"]
[BlackElo "2533"]
[Result "1/2-1/2"]
[Round "01"]
[TimeControl "180+1"]
[Date "2022.07.05"]
[WhiteClock "0:00:04"]
[BlackClock "0:00:06"]

1. d4 {[%clk 0:03:00]}  Nf6 {[%clk 0:02:59]} 2. Nc3 {[%clk 0:02:59]}  d5 {[%clk 0:02:59]} 3. Bf4 {[%clk 0:03:00]}  c5 {[%clk 0:02:58]} 4. e4 {[%clk 0:03:00]}  dxe4 {[%clk 0:02:29]} 5. dxc5 {[%clk 0:02:58]}  Qa5 {[%clk 0:02:18]} 6. Qd2 {[%clk 0:02:56]}  Nc6 {[%clk 0:02:16]} 7. O-O-O {[%clk 0:02:55]}  a6 {[%clk 0:02:10]} 8. f3 {[%clk 0:02:41]}  Be6 {[%clk 0:02:06]} 9. Qe3 {[%clk 0:01:59]}  Bxa2 {[%clk 0:01:48]} 10. fxe4 {[%clk 0:01:47]}  e5 {[%clk 0:01:37]} 11. Bg5 {[%clk 0:01:40]}  Bxc5 {[%clk 0:01:32]} 12. Qd2 {[%clk 0:01:39]}  Be6 {[%clk 0:01:22]} 13. Bxf6 {[%clk 0:01:16]}  gxf6 {[%clk 0:01:21]} 14. Qh6 {[%clk 0:01:08]}  Ke7 {[%clk 0:00:53]} 15. Nf3 {[%clk 0:00:52]}  Rhd8 {[%clk 0:00:49]} 16. Bd3 {[%clk 0:00:51]}  Qa1+ {[%clk 0:00:46]} 17. Kd2 {[%clk 0:00:30]}  Qxb2 {[%clk 0:00:45]} 18. Nd5+ {[%clk 0:00:30]}  Bxd5 {[%clk 0:00:44]} 19. exd5 {[%clk 0:00:31]}  Rxd5 {[%clk 0:00:38]} 20. Ke2 {[%clk 0:00:14]}  Rxd3 {[%clk 0:00:23]} 21. Kxd3 {[%clk 0:00:15]}  Rd8+ {[%clk 0:00:22]} 22. Ke2 {[%clk 0:00:15]}  Qxc2+ {[%clk 0:00:22]} 23. Rd2 {[%clk 0:00:15]}  Rxd2+ {[%clk 0:00:15]} 24. Qxd2 {[%clk 0:00:16]}  Qe4+ {[%clk 0:00:15]} 25. Kd1 {[%clk 0:00:11]}  Qb1+ {[%clk 0:00:14]} 26. Qc1 {[%clk 0:00:11]}  Qd3+ {[%clk 0:00:14]} 27. Qd2 {[%clk 0:00:12]}  Qb1+ {[%clk 0:00:14]} 28. Qc1 {[%clk 0:00:12]}  Qd3+ {[%clk 0:00:10]} 29. Qd2 {[%clk 0:00:04]}  Qb1+ {[%clk 0:00:06]} 1/2-1/2


[Site "https://www.chess.com"]

[Event "Titled Tuesday Blitz July 05 Late 2022"]
[White "Cremisi, Daniel"]
[Black "Bluebaum, Matthias"]
[WhiteFideId "2089882"]
[BlackFideId "24651516"]
[WhiteElo "2172"]
[BlackElo "2556"]
[Result "0-1"]
[Round "01"]
[TimeControl "180+1"]
[Date "2022.07.05"]
[WhiteClock "0:00:02"]
[BlackClock "0:00:22"]

1. d4 {[%clk 0:03:00]}  Nf6 {[%clk 0:02:58]} 2. Nf3 {[%clk 0:03:00]}  d5 {[%clk 0:02:56]} 3. c4 {[%clk 0:03:00]}  e6 {[%clk 0:02:56]} 4. Nc3 {[%clk 0:02:59]}  Bb4 {[%clk 0:02:57]} 5. cxd5 {[%clk 0:02:58]}  exd5 {[%clk 0:02:58]} 6. Bg5 {[%clk 0:02:58]}  h6 {[%clk 0:02:58]} 7. Bxf6 {[%clk 0:02:58]}  Qxf6 {[%clk 0:02:58]} 8. a3 {[%clk 0:02:58]}  Bxc3+ {[%clk 0:02:58]} 9. bxc3 {[%clk 0:02:59]}  O-O {[%clk 0:02:58]} 10. e3 {[%clk 0:02:59]}  c5 {[%clk 0:02:58]} 11. Be2 {[%clk 0:02:59]}  Bf5 {[%clk 0:02:58]} 12. Ne5 {[%clk 0:02:57]}  Nc6 {[%clk 0:02:57]} 13. Nxc6 {[%clk 0:02:57]}  bxc6 {[%clk 0:02:58]} 14. O-O {[%clk 0:02:57]}  c4 {[%clk 0:02:56]} 15. Bf3 {[%clk 0:02:51]}  Rab8 {[%clk 0:02:54]} 16. Re1 {[%clk 0:02:49]}  Rfe8 {[%clk 0:02:53]} 17. Qa4 {[%clk 0:02:47]}  Rb7 {[%clk 0:02:40]} 18. Bd1 {[%clk 0:02:37]}  Qg6 {[%clk 0:02:34]} 19. Rc1 {[%clk 0:02:31]}  Be4 {[%clk 0:02:17]} 20. g3 {[%clk 0:02:22]}  Rb2 {[%clk 0:02:02]} 21. Re2 {[%clk 0:02:16]}  Reb8 {[%clk 0:01:50]} 22. Bc2 {[%clk 0:02:02]}  Qf6 {[%clk 0:01:30]} 23. f4 {[%clk 0:01:27]}  Qe6 {[%clk 0:01:22]} 24. Qxa7 {[%clk 0:01:23]}  Bxc2 {[%clk 0:01:13]} 25. Rcxc2 {[%clk 0:01:19]}  Rb1+ {[%clk 0:01:13]} 26. Kg2 {[%clk 0:01:17]}  Qe4+ {[%clk 0:01:12]} 27. Kh3 {[%clk 0:01:18]}  R8b7 {[%clk 0:01:00]} 28. Qa8+ {[%clk 0:01:15]}  Kh7 {[%clk 0:01:00]} 29. Qc8 {[%clk 0:01:13]}  Rg1 {[%clk 0:00:43]} 30. Rg2 {[%clk 0:00:59]}  Rbb1 {[%clk 0:00:34]} 31. a4 {[%clk 0:00:52]}  g6 {[%clk 0:00:26]} 32. Qd7 {[%clk 0:00:45]}  Kg7 {[%clk 0:00:26]} 33. Qd6 {[%clk 0:00:39]}  Qf5+ {[%clk 0:00:21]} 34. g4 {[%clk 0:00:38]}  Qd3 {[%clk 0:00:21]} 35. Qe5+ {[%clk 0:00:38]}  Kh7 {[%clk 0:00:22]} 36. Qe7 {[%clk 0:00:31]}  Kg8 {[%clk 0:00:17]} 37. Qe8+ {[%clk 0:00:30]}  Kg7 {[%clk 0:00:18]} 38. Qe5+ {[%clk 0:00:30]}  Kf8 {[%clk 0:00:18]} 39. Qd6+ {[%clk 0:00:14]}  Kg8 {[%clk 0:00:19]} 40. Qd8+ {[%clk 0:00:13]}  Kg7 {[%clk 0:00:19]} 41. Qe7 {[%clk 0:00:10]}  Rxg2 {[%clk 0:00:20]} 42. Rxg2 {[%clk 0:00:10]}  Re1 {[%clk 0:00:20]} 43. Qe5+ {[%clk 0:00:09]}  Kf8 {[%clk 0:00:21]} 44. Qd6+ {[%clk 0:00:09]}  Kg8 {[%clk 0:00:21]} 45. Qb8+ {[%clk 0:00:09]}  Kg7 {[%clk 0:00:21]} 46. Qe5+ {[%clk 0:00:09]}  Kh7 {[%clk 0:00:21]} 47. Rg3 {[%clk 0:00:08]}  Qf1+ {[%clk 0:00:20]} 48. Kh4 {[%clk 0:00:09]}  Qf2 {[%clk 0:00:20]} 49. Kh3 {[%clk 0:00:08]}  Rh1 {[%clk 0:00:19]} 50. Rg2 {[%clk 0:00:05]}  Qf3+ {[%clk 0:00:19]} 51. Rg3 {[%clk 0:00:05]}  Qf1+ {[%clk 0:00:20]} 52. Rg2 {[%clk 0:00:05]}  Rg1 {[%clk 0:00:21]} 53. Qf6 {[%clk 0:00:01]}  Qxg2+ {[%clk 0:00:21]} 54. Kh4 {[%clk 0:00:02]}  Qxh2# {[%clk 0:00:22]} 0-1


[Site "https://www.chess.com"]

[Event "Titled Tuesday Blitz July 05 Late 2022"]
[White "Dardha, Arben"]
[Black "Xiong, Jeffery"]
[WhiteFideId "4700481"]
[BlackFideId "2047640"]
[WhiteElo "2196"]
[BlackElo "2714"]
[Result "0-1"]
[Round "01"]
[TimeControl "180+1"]
[Date "2022.07.05"]
[WhiteClock "0:00:19"]
[BlackClock "0:01:09"]

1. e4 {[%clk 0:02:35]}  c6 {[%clk 0:02:53]} 2. d4 {[%clk 0:02:34]}  d5 {[%clk 0:02:52]} 3. Nd2 {[%clk 0:02:34]}  dxe4 {[%clk 0:02:52]} 4. Nxe4 {[%clk 0:02:35]}  Nf6 {[%clk 0:02:53]} 5. Ng3 {[%clk 0:02:30]}  h5 {[%clk 0:02:52]} 6. h4 {[%clk 0:02:27]}  e5 {[%clk 0:02:51]} 7. N1e2 {[%clk 0:02:17]}  Na6 {[%clk 0:02:27]} 8. Bg5 {[%clk 0:02:15]}  Qa5+ {[%clk 0:02:21]} 9. c3 {[%clk 0:02:07]}  Bg4 {[%clk 0:02:16]} 10. Qb3 {[%clk 0:01:53]}  O-O-O {[%clk 0:02:02]} 11. dxe5 {[%clk 0:01:35]}  Qxe5 {[%clk 0:02:03]} 12. Bf4 {[%clk 0:01:30]}  Qa5 {[%clk 0:01:15]} 13. f3 {[%clk 0:00:56]}  Nc5 {[%clk 0:01:14]} 14. Qc2 {[%clk 0:00:55]}  Nd3+ {[%clk 0:01:13]} 15. Qxd3 {[%clk 0:00:48]}  Rxd3 {[%clk 0:01:14]} 16. fxg4 {[%clk 0:00:47]}  Nxg4 {[%clk 0:01:13]} 17. Nd4 {[%clk 0:00:47]}  Rxd4 {[%clk 0:01:11]} 18. b4 {[%clk 0:00:43]}  Bxb4 {[%clk 0:01:10]} 19. cxb4 {[%clk 0:00:20]}  Qxb4+ {[%clk 0:01:11]} 20. Ke2 {[%clk 0:00:19]}  Re8+ {[%clk 0:01:10]} 21. Kf3 {[%clk 0:00:19]}  Rxf4# {[%clk 0:01:09]} 0-1


[Site "https://www.chess.com"]

[Event "Titled Tuesday Blitz July 05 Late 2022"]
[White "Dubov, Daniil"]
[Black "Dauner, Benedikt"]
[WhiteFideId "24126055"]
[BlackFideId "16225899"]
[WhiteElo "2791"]
[BlackElo "2230"]
[Result "1-0"]
[Round "01"]
[TimeControl "180+1"]
[Date "2022.07.05"]
[WhiteClock "0:01:40"]
[BlackClock "0:00:11"]

1. c4 {[%clk 0:03:00]}  Nf6 {[%clk 0:02:55]} 2. Nc3 {[%clk 0:02:59]}  e6 {[%clk 0:02:52]} 3. e4 {[%clk 0:02:59]}  c5 {[%clk 0:02:48]} 4. e5 {[%clk 0:02:57]}  Ng8 {[%clk 0:02:48]} 5. Nf3 {[%clk 0:02:56]}  Nc6 {[%clk 0:02:41]} 6. d4 {[%clk 0:02:55]}  cxd4 {[%clk 0:02:39]} 7. Nxd4 {[%clk 0:02:56]}  Nxe5 {[%clk 0:02:38]} 8. Ndb5 {[%clk 0:02:56]}  a6 {[%clk 0:02:22]} 9. Nd6+ {[%clk 0:02:55]}  Bxd6 {[%clk 0:02:23]} 10. Qxd6 {[%clk 0:02:55]}  f6 {[%clk 0:02:23]} 11. Be2 {[%clk 0:02:51]}  Ne7 {[%clk 0:02:19]} 12. O-O {[%clk 0:02:50]}  Nf5 {[%clk 0:02:18]} 13. Qd2 {[%clk 0:02:48]}  Qb6 {[%clk 0:02:13]} 14. Rd1 {[%clk 0:02:46]}  O-O {[%clk 0:02:09]} 15. b3 {[%clk 0:02:44]}  Qc7 {[%clk 0:01:56]} 16. Ba3 {[%clk 0:02:43]}  Re8 {[%clk 0:01:52]} 17. Rac1 {[%clk 0:02:39]}  b6 {[%clk 0:01:51]} 18. Ne4 {[%clk 0:02:36]}  Bb7 {[%clk 0:01:49]} 19. Nd6 {[%clk 0:02:35]}  Nxd6 {[%clk 0:01:46]} 20. Bxd6 {[%clk 0:02:36]}  Qc6 {[%clk 0:01:46]} 21. f3 {[%clk 0:02:35]}  Nf7 {[%clk 0:01:43]} 22. Bg3 {[%clk 0:02:31]}  Rad8 {[%clk 0:01:15]} 23. Bf2 {[%clk 0:02:24]}  d6 {[%clk 0:01:10]} 24. Qe3 {[%clk 0:02:22]}  Rb8 {[%clk 0:00:56]} 25. Rd2 {[%clk 0:02:16]}  Qc7 {[%clk 0:00:52]} 26. Rcd1 {[%clk 0:02:08]}  Bc6 {[%clk 0:00:49]} 27. a4 {[%clk 0:02:04]}  b5 {[%clk 0:00:45]} 28. cxb5 {[%clk 0:02:02]}  axb5 {[%clk 0:00:46]} 29. Rc1 {[%clk 0:02:02]}  Qb7 {[%clk 0:00:43]} 30. Rdc2 {[%clk 0:02:00]}  Ne5 {[%clk 0:00:27]} 31. f4 {[%clk 0:01:55]}  Bxg2 {[%clk 0:00:25]} 32. fxe5 {[%clk 0:01:52]}  Bh1 {[%clk 0:00:25]} 33. Qg3 {[%clk 0:01:51]}  Qe4 {[%clk 0:00:18]} 34. exf6 {[%clk 0:01:45]}  Rb7 {[%clk 0:00:13]} 35. Rc7 {[%clk 0:01:40]}  Rxc7 {[%clk 0:00:12]} 36. Rxc7 {[%clk 0:01:41]}  Qb1+ {[%clk 0:00:11]} 37. Bf1 {[%clk 0:01:40]} 1-0


[Site "https://www.chess.com"]

[Event "Titled Tuesday Blitz July 05 Late 2022"]
[White "Fernandez, Fernando"]
[Black "Roman, Rodrigo"]
[WhiteFideId "3802299"]
[BlackFideId "3701220"]
[WhiteElo "2292"]
[BlackElo "2001"]
[Result "1-0"]
[Round "01"]
[TimeControl "180+1"]
[Date "2022.07.06"]
[WhiteClock "0:00:06"]
[BlackClock "0:00:10"]

1. e4 {[%clk 0:02:56]}  c5 {[%clk 0:02:59]} 2. Nf3 {[%clk 0:02:56]}  Nc6 {[%clk 0:02:28]} 3. Bb5 {[%clk 0:02:55]}  g6 {[%clk 0:02:02]} 4. O-O {[%clk 0:02:52]}  Bg7 {[%clk 0:02:02]} 5. c3 {[%clk 0:02:49]}  a6 {[%clk 0:02:03]} 6. Bxc6 {[%clk 0:02:47]}  bxc6 {[%clk 0:02:04]} 7. Re1 {[%clk 0:02:45]}  e5 {[%clk 0:02:03]} 8. b3 {[%clk 0:02:31]}  Ne7 {[%clk 0:02:03]} 9. Bb2 {[%clk 0:02:32]}  O-O {[%clk 0:01:58]} 10. d4 {[%clk 0:02:32]}  cxd4 {[%clk 0:01:58]} 11. cxd4 {[%clk 0:02:32]}  exd4 {[%clk 0:01:57]} 12. Bxd4 {[%clk 0:02:31]}  f6 {[%clk 0:01:58]} 13. Nbd2 {[%clk 0:02:30]}  d5 {[%clk 0:01:57]} 14. Rc1 {[%clk 0:02:27]}  Re8 {[%clk 0:01:45]} 15. h3 {[%clk 0:02:25]}  Be6 {[%clk 0:01:37]} 16. Bc5 {[%clk 0:02:18]}  f5 {[%clk 0:01:33]} 17. e5 {[%clk 0:02:13]}  Nc8 {[%clk 0:01:30]} 18. Nd4 {[%clk 0:02:11]}  Qc7 {[%clk 0:01:24]} 19. b4 {[%clk 0:02:03]}  Bxe5 {[%clk 0:01:21]} 20. Nxe6 {[%clk 0:01:48]}  Rxe6 {[%clk 0:01:21]} 21. f4 {[%clk 0:01:48]}  Bb2 {[%clk 0:01:03]} 22. Rxe6 {[%clk 0:01:45]}  Bxc1 {[%clk 0:01:03]} 23. Re8+ {[%clk 0:01:40]}  Kf7 {[%clk 0:01:01]} 24. Rf8+ {[%clk 0:01:39]}  Kg7 {[%clk 0:01:01]} 25. Qxc1 {[%clk 0:01:38]}  Qxf4 {[%clk 0:01:01]} 26. Qc3+ {[%clk 0:01:37]}  d4 {[%clk 0:00:57]} 27. Qb3 {[%clk 0:01:28]}  Qxd2 {[%clk 0:00:54]} 28. Rg8+ {[%clk 0:01:14]}  Kh6 {[%clk 0:00:52]} 29. Bf8+ {[%clk 0:01:07]}  Kg5 {[%clk 0:00:37]} 30. Qg3+ {[%clk 0:01:06]}  Kf6 {[%clk 0:00:37]} 31. Qh4+ {[%clk 0:00:59]}  Ke6 {[%clk 0:00:34]} 32. Bh6 {[%clk 0:00:53]}  Qd1+ {[%clk 0:00:27]} 33. Kh2 {[%clk 0:00:53]}  Nb6 {[%clk 0:00:25]} 34. Rg7 {[%clk 0:00:48]}  Re8 {[%clk 0:00:20]} 35. Rc7 {[%clk 0:00:42]}  Kd5 {[%clk 0:00:20]} 36. Bg7 {[%clk 0:00:27]}  Qd2 {[%clk 0:00:18]} 37. Rb7 {[%clk 0:00:18]}  Re2 {[%clk 0:00:13]} 38. Qg3 {[%clk 0:00:13]}  Na4 {[%clk 0:00:09]} 39. Rd7+ {[%clk 0:00:11]}  Kc4 {[%clk 0:00:09]} 40. Rxd4+ {[%clk 0:00:11]}  Qxd4 {[%clk 0:00:08]} 41. Qb3+ {[%clk 0:00:10]}  Kb5 {[%clk 0:00:06]} 42. Bxd4 {[%clk 0:00:08]}  Re4 {[%clk 0:00:06]} 43. Bf2 {[%clk 0:00:06]}  Nb6 {[%clk 0:00:05]} 44. Bxb6 {[%clk 0:00:05]}  Kxb6 {[%clk 0:00:06]} 45. a3 {[%clk 0:00:05]}  Kb5 {[%clk 0:00:06]} 46. a4+ {[%clk 0:00:05]}  Kb6 {[%clk 0:00:06]} 47. Qc3 {[%clk 0:00:06]}  Kb7 {[%clk 0:00:04]} 48. Qg7+ {[%clk 0:00:05]}  Kb6 {[%clk 0:00:04]} 49. Qc3 {[%clk 0:00:05]}  h5 {[%clk 0:00:04]} 50. Qc5+ {[%clk 0:00:06]}  Kb7 {[%clk 0:00:04]} 51. a5 {[%clk 0:00:06]}  Re6 {[%clk 0:00:03]} 52. Qb6+ {[%clk 0:00:06]}  Kc8 {[%clk 0:00:04]} 53. Qxa6+ {[%clk 0:00:07]}  Kc7 {[%clk 0:00:04]} 54. Qb6+ {[%clk 0:00:07]}  Kd7 {[%clk 0:00:05]} 55. a6 {[%clk 0:00:08]}  Re2 {[%clk 0:00:05]} 56. a7 {[%clk 0:00:07]}  Ra2 {[%clk 0:00:05]} 57. Qb7+ {[%clk 0:00:07]}  Kd6 {[%clk 0:00:06]} 58. Qb8+ {[%clk 0:00:05]}  Kd5 {[%clk 0:00:06]} 59. a8=Q {[%clk 0:00:05]}  Rxa8 {[%clk 0:00:06]} 60. Qxa8 {[%clk 0:00:06]}  Kc4 {[%clk 0:00:05]} 61. Qxc6+ {[%clk 0:00:06]}  Kxb4 {[%clk 0:00:06]} 62. Qxg6 {[%clk 0:00:06]}  h4 {[%clk 0:00:07]} 63. Qxf5 {[%clk 0:00:06]}  Kc3 {[%clk 0:00:08]} 64. g4 {[%clk 0:00:05]}  Kd2 {[%clk 0:00:07]} 65. g5 {[%clk 0:00:06]}  Ke1 {[%clk 0:00:07]} 66. g6 {[%clk 0:00:07]}  Ke2 {[%clk 0:00:08]} 67. g7 {[%clk 0:00:07]}  Ke3 {[%clk 0:00:08]} 68. g8=Q {[%clk 0:00:07]}  Kd2 {[%clk 0:00:09]} 69. Qgd5+ {[%clk 0:00:07]}  Kc3 {[%clk 0:00:09]} 70. Qfd3+ {[%clk 0:00:06]}  Kb4 {[%clk 0:00:10]} 71. Q5b5# {[%clk 0:00:06]} 1-0


[Site "https://www.chess.com"]

[Event "Titled Tuesday Blitz July 05 Late 2022"]
[White "Holt, Conrad"]
[Black "Bobadilla Viera, Jorge Samuel"]
[WhiteFideId "2034387"]
[BlackFideId "3906353"]
[WhiteElo "2586"]
[BlackElo "2202"]
[Result "1-0"]
[Round "01"]
[TimeControl "180+1"]
[Date "2022.07.05"]
[WhiteClock "0:00:27"]
[BlackClock "0:00:10"]

1. d4 {[%clk 0:02:59]}  Nf6 {[%clk 0:02:58]} 2. c4 {[%clk 0:02:59]}  e6 {[%clk 0:02:59]} 3. Nc3 {[%clk 0:02:58]}  Bb4 {[%clk 0:02:59]} 4. Qc2 {[%clk 0:02:58]}  O-O {[%clk 0:02:59]} 5. e4 {[%clk 0:02:53]}  d5 {[%clk 0:02:58]} 6. e5 {[%clk 0:02:52]}  Ne4 {[%clk 0:02:56]} 7. Bd3 {[%clk 0:02:52]}  c5 {[%clk 0:02:54]} 8. Nf3 {[%clk 0:02:53]}  cxd4 {[%clk 0:02:51]} 9. Nxd4 {[%clk 0:02:53]}  Nd7 {[%clk 0:02:51]} 10. Bf4 {[%clk 0:02:52]}  Ndc5 {[%clk 0:02:48]} 11. O-O {[%clk 0:02:51]}  Bxc3 {[%clk 0:02:41]} 12. bxc3 {[%clk 0:02:51]}  Nxd3 {[%clk 0:02:40]} 13. Qxd3 {[%clk 0:02:51]}  b6 {[%clk 0:02:40]} 14. cxd5 {[%clk 0:02:51]}  exd5 {[%clk 0:02:39]} 15. Rad1 {[%clk 0:02:50]}  Qd7 {[%clk 0:02:35]} 16. f3 {[%clk 0:02:45]}  Nc5 {[%clk 0:02:32]} 17. Qd2 {[%clk 0:02:45]}  Ba6 {[%clk 0:02:29]} 18. Rfe1 {[%clk 0:02:46]}  Rac8 {[%clk 0:02:29]} 19. h4 {[%clk 0:02:43]}  Rfe8 {[%clk 0:02:23]} 20. h5 {[%clk 0:02:42]}  Nd3 {[%clk 0:02:20]} 21. h6 {[%clk 0:02:38]}  Nxe1 {[%clk 0:02:18]} 22. Rxe1 {[%clk 0:02:37]}  g6 {[%clk 0:02:13]} 23. Bg5 {[%clk 0:02:37]}  Qc7 {[%clk 0:02:09]} 24. Re3 {[%clk 0:02:29]}  Rxe5 {[%clk 0:02:04]} 25. Bf4 {[%clk 0:02:28]}  f6 {[%clk 0:01:59]} 26. Ne6 {[%clk 0:01:50]}  Qd6 {[%clk 0:01:50]} 27. Ng5 {[%clk 0:01:48]}  Rce8 {[%clk 0:01:37]} 28. Bxe5 {[%clk 0:01:33]}  Rxe5 {[%clk 0:01:32]} 29. Rxe5 {[%clk 0:01:32]}  Qxe5 {[%clk 0:01:27]} 30. f4 {[%clk 0:01:28]}  Qf5 {[%clk 0:01:07]} 31. Nf3 {[%clk 0:01:23]}  Qe4 {[%clk 0:00:58]} 32. Qc1 {[%clk 0:01:19]}  Bc4 {[%clk 0:00:49]} 33. a3 {[%clk 0:01:05]}  a5 {[%clk 0:00:40]} 34. Kh2 {[%clk 0:01:05]}  Be2 {[%clk 0:00:39]} 35. Nd4 {[%clk 0:01:04]}  Bc4 {[%clk 0:00:38]} 36. Kg3 {[%clk 0:01:02]}  Qd3+ {[%clk 0:00:38]} 37. Kf2 {[%clk 0:01:02]}  Qe4 {[%clk 0:00:35]} 38. g3 {[%clk 0:00:55]}  Kf7 {[%clk 0:00:35]} 39. Qd1 {[%clk 0:00:54]}  b5 {[%clk 0:00:34]} 40. Qg4 {[%clk 0:00:53]}  Qe7 {[%clk 0:00:29]} 41. Nc6 {[%clk 0:00:46]}  Qc5+ {[%clk 0:00:28]} 42. Nd4 {[%clk 0:00:46]}  Qe7 {[%clk 0:00:28]} 43. Qc8 {[%clk 0:00:45]}  g5 {[%clk 0:00:18]} 44. Qh8 {[%clk 0:00:36]}  Kg6 {[%clk 0:00:17]} 45. Qg8+ {[%clk 0:00:36]}  Kh5 {[%clk 0:00:13]} 46. Qg7 {[%clk 0:00:36]}  Qe4 {[%clk 0:00:09]} 47. Qxf6 {[%clk 0:00:31]}  gxf4 {[%clk 0:00:09]} 48. gxf4 {[%clk 0:00:26]}  Qg6 {[%clk 0:00:10]} 49. Qe5+ {[%clk 0:00:26]}  Kxh6 {[%clk 0:00:10]} 50. Nf5+ {[%clk 0:00:26]}  Kh5 {[%clk 0:00:10]} 51. Ne7+ {[%clk 0:00:27]} 1-0


[Site "https://www.chess.com"]